[Event "CZE-ch U10 2020"]
[Site "Kouty nad Desnou"]
[Date "2020.03.08"]
[Round "2.8"]
[White "Stary, Vojtech"]
[Black "Srba, Daniel"]
[Result "1-0"]
[ECO "C47"]
[WhiteElo "1559"]
[BlackElo "1145"]
[Annotator "NA"]
[PlyCount "68"]
[EventDate "2020.03.07"]
[EventCountry "CZE"]
[SourceTitle "playchess.com"]
[Source "ChessBase"]
[SourceQuality "1"]
[TimeControl "5400+30"]

1. e4 {[%emt 0:00:00]} e5 {[%emt 0:00:31]} 2. Nf3 {[%emt 0:00:00]} Nc6 {[%emt 0:01:30]} 3. Nc3 {[%emt 0:00:05]} Nf6 {[%emt 0:01:52]} 4. d4 {[%emt 0:00:12]} exd4 {[%emt 0:02:20]} 5. Nxd4 {[%emt 0:00:15]} Bb4 {[%emt 0:03:43]} 6. Nxc6 {[%emt 0:01:32]} dxc6 {[%emt 0:02:01]} 7. Qxd8+ {[%emt 0:01:02]} Kxd8 {[%emt 0:00:44]} 8. f3 {[%emt 0:04:03]} Re8 {[%emt 0:02:24]} 9. Bc4 {[%emt 0:02:30]} Nxe4 {[%emt 0:06:59]} 10. fxe4 {[%emt 0:11:03]} Rxe4+ {[%emt 0:01:35]} 11. Be2 {[%emt 0:03:54]} Bg4 {[%emt 0:01:09]} 12. Kf2 {[%emt 0:04:56]} Bxc3 {[%emt 0:02:50]} 13. Bxg4 {[%emt 0:03:53]} Bxb2 {[%emt 0:02:44]} 14. Bxb2 {[%emt 0:01:04]} Rxg4 {[%emt 0:00:07]} 15. Rad1+ {[%emt 0:00:51]} Kc8 {[%emt 0:01:14]} 16. Rhe1 {[%emt 0:01:34]} b6 {[%emt 0:00:09]} 17. Re8+ {[%emt 0:01:30]} Kb7 {[%emt 0:00:15]} 18. Rxa8 {[%emt 0:00:44]} Kxa8 {[%emt 0:02:04]} 19. a3 {[%emt 0:09:51]} Kb7 {[%emt 0:02:16]} 20. Rd7 {[%emt 0:02:59]} f6 {[%emt 0:01:17]} 21. Rd4 {[%emt 0:02:55]} Rxd4 {[%emt 0:04:45]} 22. Bxd4 {[%emt 0:00:31]} c5 {[%emt 0:00:04]} 23. Bb2 {[%emt 0:00:44]} a5 {[%emt 0:00:37]} 24. Ke3 {[%emt 0:01:52]} Kc6 {[%emt 0:00:31]} 25. c4 {[%emt 0:01:51]} Kd6 {[%emt 0:00:14]} 26. Ke4 {[%emt 0:00:41]} Ke6 {[%emt 0:00:10]} 27. Bc3 {[%emt 0:01:43]} c6 {[%emt 0:00:45]} 28. g3 {[%emt 0:02:39]} b5 {[%emt 0:00:56]} 29. Bxa5 {[%emt 0:00:41]} g6 {[%emt 0:01:05]} 30. h3 {[%emt 0:02:59]} g5 {[%emt 0:03:38]} 31. g4 {[%emt 0:01:28]} h5 {[%emt 0:02:56]} 32. Bc3 {[%emt 0:03:57]} bxc4 {[%emt 0:02:59]} 33. a4 {[%emt 0:00:45]} Kd7 {[%emt 0:00:18]} 34. gxh5 {[%emt 0:00:20]} Ke8 1-0

[Event "CZE-ch U10 2020"]
[Site "Kouty nad Desnou"]
[Date "2020.03.08"]
[Round "2.9"]
[White "Letal, Hynek"]
[Black "Svadlenka, Michal"]
[Result "0-1"]
[ECO "B77"]
[WhiteElo "1127"]
[BlackElo "1309"]
[Annotator "NA"]
[PlyCount "52"]
[EventDate "2020.03.07"]
[EventCountry "CZE"]
[SourceTitle "playchess.com"]
[Source "ChessBase"]
[SourceQuality "1"]
[TimeControl "5400+30"]

1. e4 {[%emt 0:00:00]} c5 {[%emt 0:00:00]} 2. Nf3 {[%emt 0:00:00]} d6 {[%emt 0:00:16]} 3. d4 {[%emt 0:00:00]} cxd4 {[%emt 0:00:32]} 4. Nxd4 {[%emt 0:00:10]} Nf6 {[%emt 0:00:17]} 5. Nc3 {[%emt 0:00:10]} g6 {[%emt 0:00:21]} 6. Be3 {[%emt 0:00:54]} Bg7 {[%emt 0:00:27]} 7. f3 {[%emt 0:00:45]} O-O {[%emt 0:00:39]} 8. Qd2 {[%emt 0:00:54]} Nc6 {[%emt 0:00:24]} 9. Bc4 {[%emt 0:01:00]} Bd7 {[%emt 0:00:54]} 10. Bb3 {[%emt 0:00:30]} Rb8 {[%emt 0:03:31]} 11. h4 {[%emt 0:01:48]} h5 {[%emt 0:01:00]} 12. O-O-O {[%emt 0:01:42]} b5 {[%emt 0:00:57]} 13. Nxc6 {[%emt 0:02:33]} Bxc6 {[%emt 0:00:23]} 14. Bh6 {[%emt 0:00:54]} a5 {[%emt 0:02:11]} 15. Bxg7 {[%emt 0:03:03]} Kxg7 {[%emt 0:00:30]} 16. g4 {[%emt 0:00:42]} a4 {[%emt 0:00:44]} 17. Bd5 {[%emt 0:01:01]} b4 {[%emt 0:08:24]} 18. Ne2 Bxd5 {[%emt 0:01:17]} 19. exd5 {[%emt 0:04:39]} b3 {[%emt 0:02:17]} 20. a3 {[%emt 0:00:13]} bxc2 {[%emt 0:01:04]} 21. Kxc2 {[%emt 0:00:37]} Qb6 {[%emt 0:02:04]} 22. Kb1 {[%emt 0:00:48]} Qb3 {[%emt 0:04:57]} 23. g5 Nxd5 {[%emt 0:04:08]} 24. f4 {[%emt 0:11:12]} Rfc8 {[%emt 0:01:06]} 25. Nd4 {[%emt 0:08:44]} Nc3+ {[%emt 0:01:56]} 26. Ka1 {[%emt 0:00:13]} Qa2# {[%emt 0:00:15]} 0-1

[Event "CZE-ch U10 2020"]
[Site "Kouty nad Desnou"]
[Date "2020.03.08"]
[Round "2.10"]
[White "Soucek, Andrej"]
[Black "Policar, Martin"]
[Result "0-1"]
[ECO "C45"]
[WhiteElo "1043"]
[BlackElo "1264"]
[Annotator "NA"]
[PlyCount "152"]
[EventDate "2020.03.07"]
[EventCountry "CZE"]
[SourceTitle "playchess.com"]
[Source "ChessBase"]
[SourceQuality "1"]
[TimeControl "5400+30"]

1. e4 {[%emt 0:00:00]} e5 {[%emt 0:00:00]} 2. Nf3 {[%emt 0:00:01]} Nc6 {[%emt 0:00:17]} 3. d4 {[%emt 0:00:35]} exd4 {[%emt 0:00:12]} 4. Nxd4 {[%emt 0:00:25]} Bc5 {[%emt 0:00:30]} 5. Nb3 {[%emt 0:01:35]} Bb6 {[%emt 0:01:19]} 6. Nc3 {[%emt 0:01:29]} d6 {[%emt 0:02:03]} 7. Bd3 {[%emt 0:00:48]} Nf6 {[%emt 0:01:54]} 8. O-O {[%emt 0:01:23]} Bg4 {[%emt 0:00:44]} 9. Be2 {[%emt 0:01:28]} Bxe2 {[%emt 0:00:54]} 10. Qxe2 {[%emt 0:00:21]} O-O {[%emt 0:01:49]} 11. Bf4 {[%emt 0:02:35]} Re8 {[%emt 0:01:14]} 12. Qf3 {[%emt 0:03:36]} Qe7 {[%emt 0:03:22]} 13. Rfe1 {[%emt 0:05:33]} d5 {[%emt 0:00:53]} 14. e5 {[%emt 0:02:43]} Rad8 {[%emt 0:00:53]} 15. Rad1 {[%emt 0:02:40]} Nb4 {[%emt 0:02:33]} 16. Qe2 {[%emt 0:03:17]} Nd7 {[%emt 0:04:16]} 17. Nxd5 {[%emt 0:01:27]} Nxd5 {[%emt 0:01:58]} 18. Rxd5 {[%emt 0:00:40]} c6 {[%emt 0:00:49]} 19. Rd2 {[%emt 0:01:44]} Bc7 {[%emt 0:02:31]} 20. Qh5 {[%emt 0:01:23]} f6 {[%emt 0:00:50]} 21. Rde2 {[%emt 0:02:03]} fxe5 {[%emt 0:01:51]} 22. Bg5 {[%emt 0:01:28]} Nf6 {[%emt 0:00:37]} 23. Bxf6 {[%emt 0:01:08]} Qxf6 {[%emt 0:00:26]} 24. Re3 {[%emt 0:01:15]} Rf8 {[%emt 0:01:38]} 25. Rf3 {[%emt 0:00:43]} Qe6 {[%emt 0:01:26]} 26. Rxf8+ {[%emt 0:01:15]} Rxf8 {[%emt 0:00:19]} 27. Qe2 {[%emt 0:03:15]} Qf6 {[%emt 0:01:39]} 28. Rf1 {[%emt 0:02:09]} Qh6 {[%emt 0:01:23]} 29. h3 {[%emt 0:00:51]} Qf4 {[%emt 0:00:47]} 30. Qg4 {[%emt 0:00:51]} Qxg4 {[%emt 0:00:50]} 31. hxg4 {[%emt 0:00:16]} Rf4 {[%emt 0:00:35]} 32. f3 {[%emt 0:00:22]} Bb6+ {[%emt 0:00:09]} 33. Kh2 {[%emt 0:00:17]} e4 {[%emt 0:00:34]} 34. Kg3 {[%emt 0:00:28]} Bc7 {[%emt 0:00:37]} 35. Kf2 {[%emt 0:00:19]} Bb6+ {[%emt 0:01:11]} 36. Kg3 {[%emt 0:00:23]} Rf7 {[%emt 0:00:23]} 37. Re1 {[%emt 0:01:01]} e3 {[%emt 0:00:35]} 38. Kh2 {[%emt 0:01:19]} Re7 {[%emt 0:00:31]} 39. Nc1 {[%emt 0:00:22]} Bc7+ {[%emt 0:00:27]} 40. g3 {[%emt 0:00:24]} Ba5 {[%emt 0:00:30]} 41. Re2 {[%emt 0:00:30]} Bd2 {[%emt 0:00:39]} 42. Nd3 {[%emt 0:00:30]} Rc7 {[%emt 0:05:01]} 43. Nc5 {[%emt 0:01:00]} Rf7 {[%emt 0:01:02]} 44. Kg2 {[%emt 0:00:24]} Kf8 {[%emt 0:00:41]} 45. Nb3 {[%emt 0:00:09]} Rd7 {[%emt 0:00:45]} 46. c3 {[%emt 0:00:55]} b6 {[%emt 0:03:04]} 47. f4 {[%emt 0:00:37]} c5 {[%emt 0:00:19]} 48. Kf3 {[%emt 0:00:25]} c4 {[%emt 0:00:36]} 49. Nd4 {[%emt 0:00:17]} a6 {[%emt 0:03:28]} 50. a4 {[%emt 0:00:46]} Rd5 {[%emt 0:00:43]} 51. Ne6+ {[%emt 0:01:25]} Kg8 {[%emt 0:00:32]} 52. Nd4 {[%emt 0:00:58]} g6 {[%emt 0:00:39]} 53. Rg2 {[%emt 0:00:36]} Ra5 {[%emt 0:03:48]} 54. Rg1 {[%emt 0:00:25]} Rxa4 {[%emt 0:00:33]} 55. Rb1 {[%emt 0:00:38]} b5 {[%emt 0:00:38]} 56. Ke2 {[%emt 0:00:32]} b4 {[%emt 0:00:17]} 57. cxb4 {[%emt 0:00:54]} Rxb4 {[%emt 0:00:18]} 58. Nc2 {[%emt 0:00:10]} Rb3 {[%emt 0:01:14]} 59. Nd4 {[%emt 0:00:24]} Rd3 {[%emt 0:00:24]} 60. Nc2 {[%emt 0:00:28]} Kf7 {[%emt 0:01:14]} 61. Ra1 {[%emt 0:00:52]} Rb3 {[%emt 0:00:46]} 62. Rb1 {[%emt 0:00:38]} c3 {[%emt 0:01:40]} 63. g5 {[%emt 0:01:18]} Rxb2 {[%emt 0:00:13]} 64. Rxb2 {[%emt 0:00:35]} cxb2 {[%emt 0:00:34]} 65. Na3 {[%emt 0:00:06]} Ke6 {[%emt 0:00:24]} 66. g4 {[%emt 0:00:46]} a5 {[%emt 0:00:58]} 67. Kd3 {[%emt 0:00:23]} a4 {[%emt 0:00:47]} 68. Ke2 {[%emt 0:01:02]} Bb4 {[%emt 0:00:10]} 69. Nb1 {[%emt 0:00:17]} a3 {[%emt 0:00:12]} 70. Kxe3 {[%emt 0:00:17]} a2 {[%emt 0:00:28]} 71. Nd2 {[%emt 0:00:40]} Bxd2+ {[%emt 0:00:22]} 72. Kxd2 {[%emt 0:00:06]} b1=Q {[%emt 0:00:17]} 73. Ke3 {[%emt 0:00:06]} Qd1 {[%emt 0:00:10]} 74. Kf2 {[%emt 0:00:17]} a1=R {[%emt 0:00:16]} 75. Ke3 {[%emt 0:00:18]} Ra3+ {[%emt 0:00:19]} 76. Ke4 {[%emt 0:00:12]} Qa4# {Kd4 Ke5+} 0-1

[Event "CZE-ch U10 2020"]
[Site "Kouty nad Desnou"]
[Date "2020.03.08"]
[Round "2.11"]
[White "Chernyy, Andrey"]
[Black "Ruzicka, Oto"]
[Result "0-1"]
[ECO "C50"]
[WhiteElo "1208"]
[BlackElo "1168"]
[Annotator "NA"]
[PlyCount "64"]
[EventDate "2020.03.07"]
[EventCountry "CZE"]
[SourceTitle "playchess.com"]
[Source "ChessBase"]
[SourceQuality "1"]
[TimeControl "5400+30"]

1. e4 {[%emt 0:00:00]} e5 {[%emt 0:00:57]} 2. Nf3 {[%emt 0:00:00]} Nc6 {[%emt 0:00:19]} 3. Bc4 {[%emt 0:00:14]} Nf6 {[%emt 0:00:31]} 4. d3 {[%emt 0:00:47]} Bc5 {[%emt 0:02:38]} 5. O-O {[%emt 0:01:09]} d6 {[%emt 0:00:30]} 6. c3 {[%emt 0:00:30]} Be6 {[%emt 0:00:30]} 7. Bb3 {[%emt 0:00:30]} O-O {[%emt 0:00:30]} 8. Nbd2 {[%emt 0:00:30]} Qe7 {[%emt 0:00:30]} 9. h3 {[%emt 0:00:30]} h6 {[%emt 0:00:30]} 10. Bc2 {[%emt 0:00:30]} Rad8 {[%emt 0:15:40]} 11. Re1 {[%emt 0:10:32]} d5 {[%emt 0:00:30]} 12. exd5 {[%emt 0:00:30]} Bxd5 {[%emt 0:00:30]} 13. Nxe5 {[%emt 0:00:30]} Nxe5 {[%emt 0:00:30]} 14. d4 {[%emt 0:00:30]} Bd6 {[%emt 0:00:30]} 15. dxe5 {[%emt 0:00:30]} Bxe5 {[%emt 0:00:30]} 16. c4 {[%emt 0:00:30]} Bxc4 {[%emt 0:00:30]} 17. Bb3 {[%emt 0:00:30]} Bxb3 {[%emt 0:00:30]} 18. Qxb3 {[%emt 0:00:30]} Bh2+ {[%emt 0:00:30]} 19. Kf1 {[%emt 0:00:30]} Qc5 {[%emt 0:00:30]} 20. g3 {[%emt 0:00:30]} Rfe8 21. Rxe8+ Rxe8 {[%emt 0:15:54]} 22. Qc4 {[%emt 0:21:01]} Qf5 {[%emt 0:03:58]} 23. Kg2 {[%emt 0:02:17]} Re1 {[%emt 0:05:19]} 24. Nf3 {[%emt 0:00:56]} Bxg3 {[%emt 0:01:35]} 25. fxg3 {[%emt 0:03:10]} b5 {[%emt 0:04:09]} 26. Qc3 {[%emt 0:04:27]} Re2+ {[%emt 0:00:52]} 27. Kf1 {[%emt 0:01:14]} Ne4 {[%emt 0:01:31]} 28. Qb3 {[%emt 0:01:32]} Nxg3+ {[%emt 0:00:39]} 29. Kg1 {[%emt 0:00:26]} Qxh3 {[%emt 0:00:28]} 30. Qxf7+ {[%emt 0:03:08]} Kxf7 {[%emt 0:00:39]} 31. Ne5+ {[%emt 0:00:10]} Kg8 {[%emt 0:00:25]} 32. Ng4 {[%emt 0:00:25]} Qg2# {[%emt 0:00:15]} 0-1

[Event "CZE-ch U10 2020"]
[Site "Kouty nad Desnou"]
[Date "2020.03.08"]
[Round "2.12"]
[White "Stejskal, Jakub"]
[Black "Milek, Tobias"]
[Result "1-0"]
[ECO "B77"]
[WhiteElo "1557"]
[BlackElo "1163"]
[Annotator "NA"]
[PlyCount "51"]
[EventDate "2020.03.07"]
[EventCountry "CZE"]
[SourceTitle "playchess.com"]
[Source "ChessBase"]
[SourceQuality "1"]
[TimeControl "5400+30"]

1. e4 {[%emt 0:00:00]} c5 {[%emt 0:00:00]} 2. Nf3 {[%emt 0:00:00]} d6 {[%emt 0:00:00]} 3. d4 {[%emt 0:00:29]} cxd4 {[%emt 0:00:00]} 4. Nxd4 {[%emt 0:00:12]} Nf6 {[%emt 0:00:07]} 5. Nc3 {[%emt 0:00:18]} g6 {[%emt 0:00:16]} 6. Be3 {[%emt 0:00:57]} Bg7 {[%emt 0:00:15]} 7. f3 {[%emt 0:00:29]} Nc6 {[%emt 0:00:25]} 8. Bc4 {[%emt 0:04:36]} O-O {[%emt 0:00:22]} 9. Qd2 {[%emt 0:04:00]} Nxd4 {[%emt 0:01:28]} 10. Bxd4 {[%emt 0:00:39]} Bd7 {[%emt 0:01:42]} 11. O-O {[%emt 0:06:38]} Rc8 {[%emt 0:01:23]} 12. Bb3 {[%emt 0:03:34]} e6 {[%emt 0:01:27]} 13. Rad1 {[%emt 0:01:39]} b6 {[%emt 0:01:35]} 14. e5 {[%emt 0:01:30]} dxe5 {[%emt 0:00:48]} 15. Bxe5 {[%emt 0:00:31]} Bc6 {[%emt 0:00:45]} 16. Qf4 {[%emt 0:01:43]} Nh5 {[%emt 0:01:38]} 17. Rxd8 {[%emt 0:00:46]} Nxf4 {[%emt 0:00:52]} 18. Rxf8+ {[%emt 0:02:22]} Kxf8 {[%emt 0:01:18]} 19. Bxf4 {[%emt 0:00:16]} Rd8 {[%emt 0:00:14]} 20. Rd1 {[%emt 0:04:36]} Rxd1+ {[%emt 0:00:33]} 21. Nxd1 {[%emt 0:00:21]} Bd4+ {[%emt 0:00:09]} 22. Be3 {[%emt 0:01:56]} Be5 {[%emt 0:00:29]} 23. c3 {[%emt 0:03:59]} Kg8 {[%emt 0:00:37]} 24. Nf2 {[%emt 0:04:54]} Bd7 {[%emt 0:00:46]} 25. Ng4 {[%emt 0:00:35]} Bc7 {[%emt 0:00:45]} 26. Nf6+ {[%emt 0:00:34]} 1-0

[Event "CZE-ch U10 2020"]
[Site "Kouty nad Desnou"]
[Date "2020.03.09"]
[Round "3.1"]
[White "Delgerdalai, Bayarjavkhlan"]
[Black "Alidis, Myron"]
[Result "1-0"]
[ECO "B80"]
[WhiteElo "1553"]
[BlackElo "1395"]
[Annotator "NA RC"]
[PlyCount "119"]
[EventDate "2020.03.07"]
[EventCountry "CZE"]
[SourceTitle "playchess.com"]
[Source "ChessBase"]
[SourceQuality "1"]
[TimeControl "5400+30"]

1. e4 c5 2. Nf3 e6 3. d4 cxd4 4. Nxd4 Nf6 5. Nc3 d6 6. Be3 Be7 7. f3 O-O 8. Qd2 Nc6 9. O-O-O d5 10. Be2 Qa5 11. Nb3 Qd8 12. Kb1 dxe4 13. Qxd8 Rxd8 14. Rxd8+ Bxd8 15. fxe4 Bb6 16. Bxb6 axb6 17. Rd1 Bd7 18. h4 e5 19. Nd5 Nxd5 20. Rxd5 Rd8 21. Rb5 Nd4 22. Nxd4 Bxb5 23. Nxb5 Rd2 24. Bf3 g6 25. Kc1 Rf2 26. Nd6 Rf1+ 27. Kd2 Rh1 28. h5 gxh5 29. Nxb7 h4 30. Bg4 Kf8 31. Nd6 Rf1 32. Bh3 Ke7 33. Nc8+ Kf6 34. Nxb6 Kg5 35. Nd5 f5 36. exf5 Rf2+ 37. Ke3 Rxc2 38. f6 Kg6 39. b4 Rxa2 40. b5 Rb2 41. b6 Rb5 42. Ke4 Rxb6 43. Nxb6 Kxf6 44. Nd7+ Kg5 45. Kxe5 h6 46. Nf8 Kh5 47. Bf5 Kg5 48. Ng6 Kh5 49. Nxh4 Kxh4 50. Kf6 h5 51. Kg6 Kg3 52. Bh3 Kh4 53. Kh6 Kg3 54. Kxh5 Kf4 55. g4 Ke5 56. g5 Kd6 57. g6 Ke7 58. g7 Kf7 59. Kh6 Kg8 60. Be6# 1-0

[Event "CZE-ch U10 2020"]
[Site "Kouty nad Desnou"]
[Date "2020.03.09"]
[Round "3.2"]
[White "Gorej, Vojtech"]
[Black "Chon, Jeremy"]
[Result "1-0"]
[ECO "B27"]
[WhiteElo "1360"]
[BlackElo "1449"]
[Annotator "NA RC"]
[PlyCount "99"]
[EventDate "2020.03.07"]
[EventCountry "CZE"]
[SourceTitle "playchess.com"]
[Source "ChessBase"]
[SourceQuality "1"]
[TimeControl "5400+30"]

1. e4 {[%emt 0:00:00]} c5 {[%emt 0:00:00]} 2. Nf3 {[%emt 0:00:13]} g6 {[%emt 0:00:00]} 3. d4 {[%emt 0:00:56]} cxd4 {[%emt 0:00:00]} 4. Qxd4 {[%emt 0:00:10]} Nf6 {[%emt 0:00:00]} 5. e5 {[%emt 0:00:30]} Nc6 {[%emt 0:00:00]} 6. Qa4 {[%emt 0:00:35]} Nd5 {[%emt 0:00:40]} 7. Qe4 {[%emt 0:01:06]} Nc7 {[%emt 0:01:15]} 8. Bf4 Bg7 {[%emt 0:02:26]} 9. Nc3 {[%emt 0:03:53]} O-O {[%emt 0:00:58]} 10. O-O-O {[%emt 0:01:02]} Ne6 {[%emt 0:05:02]} 11. Bg3 {[%emt 0:02:27]} Nc5 {[%emt 0:06:26]} 12. Qe3 {[%emt 0:02:01]} b6 {[%emt 0:07:03]} 13. h4 {[%emt 0:02:28]} h5 {[%emt 0:11:43]} 14. Bf4 {[%emt 0:00:38]} Kh7 {[%emt 0:01:47]} 15. Ng5+ Kg8 {[%emt 0:00:39]} 16. f3 {[%emt 0:03:24]} f6 {[%emt 0:00:56]} 17. Bc4+ {[%emt 0:01:20]} Kh8 {[%emt 0:08:25]} 18. Nf7+ {[%emt 0:00:52]} Rxf7 {[%emt 0:00:05]} 19. Bxf7 {[%emt 0:00:08]} fxe5 {[%emt 0:02:34]} 20. Bh6 {[%emt 0:00:34]} Qf8 {[%emt 0:04:46]} 21. Bxg7+ {[%emt 0:00:28]} Kxg7 {[%emt 0:00:36]} 22. Bd5 {[%emt 0:00:25]} Bb7 {[%emt 0:01:42]} 23. Bxc6 {[%emt 0:00:25]} Bxc6 {[%emt 0:00:14]} 24. Qxe5+ {[%emt 0:00:12]} Kh7 {[%emt 0:00:12]} 25. Rhe1 {[%emt 0:01:00]} e6 {[%emt 0:00:45]} 26. Ne4 {[%emt 0:00:45]} Nxe4 {[%emt 0:01:00]} 27. fxe4 {[%emt 0:00:12]} Qe7 {[%emt 0:02:06]} 28. Rf1 {[%emt 0:01:49]} Rf8 {[%emt 0:01:17]} 29. g3 {[%emt 0:01:39]} Rxf1 {[%emt 0:02:54]} 30. Rxf1 {[%emt 0:00:11]} Qg7 {[%emt 0:00:33]} 31. Qxg7+ {[%emt 0:00:50]} Kxg7 {[%emt 0:00:19]} 32. e5 {[%emt 0:00:02]} a6 {[%emt 0:01:00]} 33. Kd2 {[%emt 0:00:38]} Be4 {[%emt 0:00:35]} 34. Kc3 {[%emt 0:00:19]} Kg8 {[%emt 0:01:07]} 35. Kb3 {[%emt 0:00:36]} Kg7 {[%emt 0:00:19]} 36. c4 {[%emt 0:01:14]} Kh6 {[%emt 0:01:38]} 37. Kc3 {[%emt 0:01:02]} Kg7 {[%emt 0:00:51]} 38. b4 {[%emt 0:00:28]} b5 {[%emt 0:00:36]} 39. a4 {[%emt 0:03:01]} Bc6 {[%emt 0:01:32]} 40. cxb5 {[%emt 0:00:29]} axb5 {[%emt 0:00:24]} 41. a5 {[%emt 0:00:07]} Kg8 {[%emt 0:01:07]} 42. a6 {[%emt 0:00:11]} Kg7 {[%emt 0:00:12]} 43. a7 {[%emt 0:00:09]} Kg8 {[%emt 0:00:25]} 44. Kd4 {[%emt 0:00:39]} Kg7 {[%emt 0:00:09]} 45. Kc5 {[%emt 0:00:16]} Kg8 {[%emt 0:00:40]} 46. Kd6 {[%emt 0:00:07]} Bg2 {[%emt 0:00:17]} 47. Kc7 {[%emt 0:00:25]} Kg7 {[%emt 0:00:17]} 48. Kb8 {[%emt 0:00:10]} Kg8 {[%emt 0:00:17]} 49. a8=Q {[%emt 0:00:12]} Bxa8 {[%emt 0:00:12]} 50. Kxa8 1-0

[Event "CZE-ch U10 2020"]
[Site "Kouty nad Desnou"]
[Date "2020.03.09"]
[Round "3.3"]
[White "Svadlenka, Dominik"]
[Black "Krautschneider, Daniel Jan"]
[Result "1/2-1/2"]
[ECO "E13"]
[WhiteElo "1410"]
[BlackElo "1236"]
[Annotator "NA"]
[PlyCount "133"]
[EventDate "2020.03.07"]
[EventCountry "CZE"]
[SourceTitle "playchess.com"]
[Source "ChessBase"]
[SourceQuality "1"]
[TimeControl "5400+30"]

1. d4 {[%emt 0:00:00]} Nf6 {[%emt 0:00:00]} 2. c4 {[%emt 0:00:00]} e6 {[%emt 0:00:01]} 3. Nc3 {[%emt 0:00:00]} Bb4 {[%emt 0:00:09]} 4. Bg5 {[%emt 0:00:22]} h6 {[%emt 0:00:29]} 5. Bh4 {[%emt 0:00:14]} b6 {[%emt 0:00:10]} 6. Nf3 {[%emt 0:01:15]} Bb7 {[%emt 0:00:24]} 7. e3 {[%emt 0:00:34]} d5 {[%emt 0:00:14]} 8. a3 {[%emt 0:00:50]} Bxc3+ {[%emt 0:00:08]} 9. bxc3 {[%emt 0:00:13]} Nbd7 {[%emt 0:00:20]} 10. cxd5 {[%emt 0:01:19]} exd5 {[%emt 0:00:58]} 11. Bd3 {[%emt 0:05:27]} O-O {[%emt 0:01:42]} 12. O-O {[%emt 0:00:13]} c5 {[%emt 0:00:37]} 13. Rb1 {[%emt 0:00:36]} Qc7 {[%emt 0:00:21]} 14. Bg3 {[%emt 0:02:09]} Qc6 {[%emt 0:00:20]} 15. Bb5 {[%emt 0:00:28]} Qe6 {[%emt 0:00:19]} 16. a4 {[%emt 0:00:55]} Ne4 {[%emt 0:00:44]} 17. Qc2 {[%emt 0:04:01]} Rac8 {[%emt 0:04:21]} 18. Qb2 {[%emt 0:10:15]} Ndf6 {[%emt 0:05:42]} 19. Rfc1 {[%emt 0:02:56]} c4 {[%emt 0:00:38]} 20. a5 {[%emt 0:01:13]} a6 {[%emt 0:04:44]} 21. Ba4 {[%emt 0:03:34]} b5 {[%emt 0:00:33]} 22. Bc2 {[%emt 0:05:18]} Nxg3 {[%emt 0:03:21]} 23. hxg3 {[%emt 0:00:19]} Ne4 {[%emt 0:01:37]} 24. Bxe4 {[%emt 0:02:55]} Qxe4 {[%emt 0:01:48]} 25. Ne5 {[%emt 0:08:09]} Bc6 {[%emt 0:00:21]} 26. Qb4 {[%emt 0:00:29]} f6 {[%emt 0:04:36]} 27. Nf3 {[%emt 0:01:22]} Bb7 {[%emt 0:05:35]} 28. Qb2 {[%emt 0:03:50]} Rc7 {[%emt 0:00:59]} 29. Nh4 {[%emt 0:00:20]} g5 {[%emt 0:01:37]} 30. Nf3 {[%emt 0:00:12]} Bc8 {[%emt 0:03:55]} 31. Nd2 {[%emt 0:02:39]} Qh7 {[%emt 0:02:23]} 32. Kh2 {[%emt 0:01:28]} h5 {[%emt 0:01:08]} 33. Rh1 {[%emt 0:01:45]} Bf5 {[%emt 0:01:19]} 34. Rbc1 {[%emt 0:01:18]} Qh8 {[%emt 0:08:31]} 35. Qb4 {[%emt 0:05:17]} Rh7 {[%emt 0:01:27]} 36. Qd6 {[%emt 0:00:27]} h4 {[%emt 0:03:54]} 37. Qxd5+ {[%emt 0:00:38]} Rff7 {[%emt 0:00:28]} 38. g4 {[%emt 0:00:24]} Bxg4 {[%emt 0:06:18]} 39. Qa8+ {[%emt 0:02:04]} Kg7 {[%emt 0:01:11]} 40. Qxa6 {[%emt 0:01:08]} Qb8+ {[%emt 0:02:02]} 41. Kg1 {[%emt 0:01:33]} Ra7 {[%emt 0:03:39]} 42. Qb6 {[%emt 0:00:48]} Qxb6 {[%emt 0:00:38]} 43. axb6 {[%emt 0:00:19]} Ra6 {[%emt 0:00:55]} 44. Rb1 {[%emt 0:00:35]} Rxb6 {[%emt 0:07:03]} 45. Nxc4 {[%emt 0:00:57]} Rc6 {[%emt 0:00:57]} 46. Na3 {[%emt 0:01:17]} Rxc3 {[%emt 0:01:15]} 47. Nxb5 {[%emt 0:00:40]} Rc6 {[%emt 0:00:53]} 48. Ra1 {[%emt 0:01:31]} Kg6 {[%emt 0:00:42]} 49. f3 {[%emt 0:00:43]} Bd7 {[%emt 0:00:10]} 50. Rb1 {[%emt 0:02:51]} Rb6 {[%emt 0:00:13]} 51. Nc3 {[%emt 0:00:08]} Rc6 {[%emt 0:01:05]} 52. Ne4 {[%emt 0:00:45]} Bf5 {[%emt 0:00:21]} 53. Kf2 {[%emt 0:01:19]} Re7 {[%emt 0:00:44]} 54. Rbc1 {[%emt 0:00:45]} Rxc1 {[%emt 0:00:33]} 55. Rxc1 {[%emt 0:00:11]} Bxe4 {[%emt 0:00:06]} 56. fxe4 {[%emt 0:00:14]} Rxe4 {[%emt 0:00:08]} 57. Kf3 {[%emt 0:00:20]} Re8 {[%emt 0:00:17]} 58. d5 {[%emt 0:00:52]} Kf5 {[%emt 0:01:04]} 59. Re1 {[%emt 0:01:42]} g4+ {[%emt 0:01:51]} 60. Kf2 {[%emt 0:01:16]} Ke4 {[%emt 0:01:28]} 61. d6 {[%emt 0:01:09]} Ke5 {[%emt 0:00:53]} 62. d7 {[%emt 0:01:03]} Rd8 {[%emt 0:00:08]} 63. Rd1 {[%emt 0:00:17]} Ke6 {[%emt 0:00:11]} 64. Rd4 {[%emt 0:00:20]} f5 {[%emt 0:00:42]} 65. Rf4 {[%emt 0:02:12]} Rxd7 {[%emt 0:00:47]} 66. e4 {[%emt 0:00:35]} Ke5 {[%emt 0:03:50]} 67. Rxf5+ {[%emt 0:00:43]} 1/2-1/2

[Event "CZE-ch U10 2020"]
[Site "Kouty nad Desnou"]
[Date "2020.03.09"]
[Round "3.4"]
[White "Stefaniv, Vladyslav"]
[Black "Bouska, Jiri"]
[Result "0-1"]
[ECO "B38"]
[WhiteElo "1265"]
[BlackElo "1643"]
[Annotator "NA RC"]
[PlyCount "56"]
[EventDate "2020.03.07"]
[EventCountry "CZE"]
[SourceTitle "playchess.com"]
[Source "ChessBase"]
[SourceQuality "1"]
[TimeControl "5400+30"]

1. e4 {[%emt 0:00:00]} c5 {[%emt 0:00:20]} 2. c4 {[%emt 0:00:00]} Nc6 {[%emt 0:00:49]} 3. Nf3 {[%emt 0:03:28]} g6 {[%emt 0:00:34]} 4. d4 {[%emt 0:01:42]} cxd4 {[%emt 0:02:32]} 5. Nxd4 {[%emt 0:00:09]} Bg7 {[%emt 0:00:06]} 6. Be3 {[%emt 0:00:39]} Nf6 {[%emt 0:01:01]} 7. Nc3 {[%emt 0:00:39]} O-O {[%emt 0:00:44]} 8. Be2 {[%emt 0:10:00]} a6 9. O-O Nxd4 {[%emt 0:08:21]} 10. Bxd4 {[%emt 0:01:03]} d6 11. f4 {[%emt 0:13:51]} Bd7 {[%emt 0:03:58]} 12. Rc1 {[%emt 0:06:43]} Rc8 {[%emt 0:01:05]} 13. Bd3 {[%emt 0:12:47]} Bg4 {[%emt 0:00:50]} 14. Qd2 {[%emt 0:01:06]} Qa5 {[%emt 0:02:32]} 15. Be3 {[%emt 0:02:06]} Qd8 {[%emt 0:09:43]} 16. Qc2 {[%emt 0:06:24]} Be6 {[%emt 0:00:47]} 17. Ne2 {[%emt 0:14:07]} Ng4 {[%emt 0:00:46]} 18. Bf2 {[%emt 0:05:05]} Nxf2 {[%emt 0:00:45]} 19. Rxf2 {[%emt 0:00:16]} b5 {[%emt 0:00:09]} 20. Qb3 {[%emt 0:01:54]} bxc4 {[%emt 0:00:41]} 21. Bxc4 {[%emt 0:00:13]} Rb8 {[%emt 0:00:20]} 22. Qa4 {[%emt 0:02:21]} Bxc4 {[%emt 0:00:33]} 23. Qxc4 {[%emt 0:00:26]} Rxb2 {[%emt 0:00:31]} 24. Qxa6 {[%emt 0:01:08]} Qd7 {[%emt 0:00:58]} 25. h3 {[%emt 0:02:31]} Qe6 {[%emt 0:00:39]} 26. a4 {[%emt 0:05:01]} Qxe4 {[%emt 0:00:08]} 27. Nc3 {[%emt 0:01:16]} Bxc3 {[%emt 0:00:12]} 28. Rxc3 {[%emt 0:00:15]} Qe1+ {[%emt 0:00:04]} 0-1